fUST/lending_fUST_20240429
["ID","MTS","AMOUNT","RATE_DAILY","PERIOD"]
[988,1714320382651,1452.0,0.000266,120]
[989,1714320393350,514.17906868,0.0001,2]
[990,1714320430131,-538.1500611,0.00011426,2]
[991,1714320430153,-2288.4126181,0.00011467,2]
[992,1714320430175,-250.0,0.00011711,2]
[993,1714320430197,-70.07544639,0.00011742,2]
[994,1714320446115,-198.1306054,0.00011649,2]
[995,1714320446135,-131.58989561,0.00011742,2]
[996,1714320446155,-570.7829106,0.00011993,2]
[997,1714320446176,-161.4834752,0.00012399,2]
[998,1714320446196,-300.0,0.00012499,2]
[999,1714320446215,-300.0,0.00012499,2]
[1000,1714320446234,-6077.48979674,0.000125,2]
[1001,1714320451115,-246.9909,0.000125,2]
[1003,1714320545108,-154.40877069,0.00011612,2]
[1004,1714320545127,-1501.1327912,0.00011711,2]
[1005,1714320545146,-300.0,0.00012499,2]
[1006,1714320545167,-300.0,0.00012499,2]
[1007,1714320545188,-3591.88473963,0.000125,2]
[1008,1714320545206,-1865.33425042,0.000125,2]
[1009,1714320545225,-325.05755499,0.000129,2]
[1010,1714320545244,-2327.35214162,0.00012947,2]
[1011,1714320557103,-22572.64785838,0.00012947,2]
[1012,1714320557126,-154.82968734,0.00013,2]
[1013,1714320574204,-161.48347518,0.00013466,2]
[1014,1714320574224,-1003.18810543,0.00013699,2]
[1015,1714320576062,194.00494681,0.00013,2]
[1016,1714320610802,154.86062544,0.00013,2]
[1018,1714320696180,780.38200355,0.00012847,2]
[1019,1714320696201,420.78266686,0.00012847,2]
[1021,1714320714050,419.24355141,0.00012847,2]
[1023,1714320790540,150.0,0.000241,63]
[1024,1714320838933,514.17906868,0.0001,2]
[1025,1714320866647,19195.82929779,0.0001,2]
[1026,1714320882626,163.17127801,0.0001,2]
[1066,1714321248959,514.17906868,0.0001,2]
[1068,1714321264809,330.35,0.0001,5]
[1070,1714321512748,1193.15929716,0.0001,2]
[1071,1714321514905,154.98436856,0.0001,2]
[1072,1714321517870,308.25930969,0.0001,2]
[1073,1714321523329,164.05365003,9.999e-05,2]
[1074,1714321543109,154.81422293,9.999e-05,2]
[1075,1714321554641,514.17906868,0.0001,2]
[1076,1714321562544,1064.18815855,9.999e-05,2]
[1077,1714321571006,890.64374431,9.999e-05,2]
[1078,1714321572772,876.77623213,0.0001,2]
[1079,1714321575462,2724.47939639,9.999e-05,2]
[1080,1714321584763,171.80932391,0.0001,2]
[1081,1714321615684,768.69660055,0.0001,2]
[1082,1714321637166,-768.69660055,0.00011171,2]
[1083,1714321637187,-250.0,0.00011421,2]
[1084,1714321637208,-201.06187672,0.00012221,2]
[1085,1714321637229,-514.17906868,0.00012315,2]
[1086,1714321637251,-1291.67296465,0.00012316,2]
[1087,1714321637274,-300.0,0.00012414,2]
[1088,1714321637294,-300.0,0.00012414,2]
[1089,1714321637315,-1010.29704153,0.00012415,2]
[1090,1714321637334,-54146.81592086,0.00012415,2]
[1091,1714321637354,-233.41814442,0.00012416,2]
[1092,1714321637374,-59200.3865925,0.00012416,2]
[1093,1714321637393,-314.99305788,0.00012417,2]
[1094,1714321637413,-155.16737015,0.00012418,2]
[1095,1714321637434,-165.395311,0.00012418,2]
[1096,1714321637453,-155.10682007,0.00012418,2]
[1097,1714321637474,-200.0,0.00012418,2]
[1098,1714321637496,-522.69160416,0.00012418,2]
[1099,1714321637516,-5491.04282965,0.00012418,2]
[1100,1714321637536,-719.62301407,0.00012418,2]
[1101,1714321637555,-532.42819419,0.00012418,2]
[1102,1714321637578,-599.34785223,0.00012418,2]
[1103,1714321637597,-155.19238874,0.00012418,2]
[1104,1714321637617,-713.7870833,0.00012418,2]
[1105,1714321637636,-1061.06771735,0.00012418,2]
[1106,1714321637656,-310.0414014,0.00012418,2]
[1107,1714321637675,-158.18005642,0.00012418,2]
[1108,1714321637696,-158.24993973,0.00012418,2]
[1109,1714321637716,-208.79729126,0.00012418,2]
[1110,1714321637735,-200.0,0.00012418,2]
[1111,1714321637754,-1018.44698092,0.00012419,2]
[1112,1714321637777,-21495.86287757,0.00012423,2]
[1113,1714321641103,-3404.13712243,0.00012423,2]
[1114,1714321641124,-1291.67296464,0.00012618,2]
[1115,1714321641145,-162.13714254,0.00012747,2]
[1116,1714321641166,-2931.52563713,0.00012847,2]
[1117,1714321642127,-1378.42900258,0.00012847,2]
[1118,1714321642148,-1066.73517584,0.000129,2]
[1119,1714321642169,-1291.67296464,0.0001292,2]
[1120,1714321642192,-1291.67296464,0.00013222,2]
[1121,1714321642213,-153.0,0.00013441,2]
[1122,1714321642234,-1291.67296464,0.00013524,2]
[1123,1714321642254,-420.0,0.00013622,2]
[1124,1714321642276,-420.0,0.00013655,2]
[1125,1714321642296,-2255.404419,0.00013699,2]
[1126,1714321642314,-3000.0,0.00013699,2]
[1127,1714321642333,-166.666666,0.00013699,2]
[1128,1714321642352,-701.8463813,0.00013699,2]
[1129,1714321642371,-7511.47626022,0.00013699,2]
[1130,1714321647285,-5941.33912539,0.00013699,2]
[1132,1714321745104,-1262.6177395,0.00012696,2]
[1133,1714321755168,-768.69660055,0.00013688,2]
[1134,1714321755190,-300.0,0.00013689,2]
[1135,1714321755212,-646.87928776,0.0001369,2]
[1138,1714322008988,520.3609854,9.999e-05,2]
[1139,1714322021987,514.17906868,0.0001,2]
[1140,1714322078780,683.14084397,9.999e-05,2]
[1142,1714322120864,700.42924407,9.999e-05,2]
[1177,1714322425518,520.3609854,9.999e-05,2]
[1184,1714322496939,700.42924407,9.999e-05,2]
[1187,1714322723440,1066.46975475,9.999e-05,2]
[1188,1714322723468,4739.96591433,9.999e-05,2]
[1189,1714322810166,-700.42924407,0.00011198,2]
[1190,1714322810189,-1527.89227435,0.00011199,2]
[1191,1714322838171,-2295.44855395,0.00011199,2]
[1192,1714322838192,-188.96899093,0.00012048,2]
[1193,1714322838212,-104.67231767,0.00012146,2]
[1194,1714322843101,-195.32768233,0.00012146,2]
[1195,1714322843122,-998.70168781,0.00012146,2]
[1196,1714322843142,-24402.72854828,0.00012147,2]
[1197,1714322850138,-11695.14873229,0.00012147,2]
[1198,1714322850159,-465.20306352,0.00012148,2]
[1228,1714322947121,-300.0,0.00012147,2]
[1229,1714322947141,-300.0,0.00012147,2]
[1230,1714322947160,-154.79876161,0.00012148,2]
[1231,1714322947181,-729.7450776,0.00012148,2]
[1232,1714322947201,-19195.82929779,0.00012148,2]
[1233,1714322947223,-521.1072121,0.00012148,2]
[1234,1714322947248,-24434.79693648,0.00012148,2]
[1235,1714322947270,-250.0,0.00012183,2]
[1236,1714322947291,-446.8342257,0.00012233,2]
[1237,1714322947313,-190.7640305,0.00012318,2]
[1238,1714322947335,-162.1371425,0.00012384,2]
[1239,1714322947353,-8942.69087,0.00012874,2]
[1240,1714322947372,-700.42924407,0.00012899,2]
[1241,1714322947392,-1382.50387977,0.000129,2]
[1242,1714322947413,-155.0584416,0.00013012,2]
[1243,1714322947434,-162.1371425,0.00013238,2]
[1244,1714322952290,1611.73889127,0.00012873,2]
[1245,1714322952311,1630.5313,0.00012873,2]
[1253,1714322963091,-18464.45794859,0.00012148,2]
[1254,1714322963113,-26839.29420921,0.00012873,2]
[1255,1714322963134,-420.0,0.00013333,2]
[1256,1714322963153,-420.0,0.00013362,2]
[1257,1714322963172,-306.0,0.00013425,2]
[1258,1714322963190,-439.00752357,0.00013697,2]
[1259,1714322963209,-309.89201739,0.00013697,2]
[1260,1714322963228,-522.09529809,0.00013697,2]
[1261,1714322963248,-194.59653929,0.00013697,2]
[1262,1714322963267,-700.42924407,0.00013697,2]
[1263,1714322963288,-154.79876161,0.00013698,2]
[1264,1714322963307,-1743.8705972,0.00013699,2]
[1265,1714322963326,-166.666666,0.00013699,2]
[1266,1714322963346,-30373.18240308,0.00013699,2]
[1267,1714322964166,-1660.25388846,0.00013699,2]
[1304,1714323170616,475.11677013,9.999e-05,2]
[1305,1714323218708,14524.88322987,9.999e-05,2]
[1306,1714323218739,4670.94606792,9.999e-05,2]
[1307,1714323220534,16100.53592353,9.999e-05,2]
[1308,1714323232467,12496.04236182,9.999e-05,2]
[1309,1714323240537,10100.09064382,9.999e-05,2]
[1311,1714323410544,700.42924407,9.999e-05,2]
[1312,1714323495384,154.79876161,9.999e-05,2]
[1313,1714323517308,155.64986883,9.999e-05,2]
[1319,1714323879112,621.5071284,9.999e-05,2]
[1320,1714323879137,78.92211567,9.999e-05,2]
[1321,1714323923989,1621.41921468,9.999e-05,2]
[1326,1714324028199,-300.0,0.00010481,2]
[1327,1714324028230,-300.0,0.00010481,2]
[1328,1714324028250,-7139.47668355,0.00010482,2]
[1329,1714324029107,-3146.63812559,0.00010482,2]
[1330,1714324040326,1865.33425042,9.999e-05,2]
[1331,1714324041107,-246.9909,0.00010482,2]
[1332,1714324147150,-154.40877069,0.00010383,2]
[1333,1714324147169,-195.59320854,0.00010383,2]
[1334,1714324147188,-300.0,0.00010481,2]
[1335,1714324147208,-300.0,0.00010481,2]
[1336,1714324147230,-19548.45869134,0.00010482,2]
[1337,1714324147259,-154.79876161,0.00010482,2]
[1338,1714324147279,-24900.0,0.00010483,2]
[1339,1714324147297,-9923.4856654,0.00010483,2]
[1340,1714324147316,-420.0,0.00011523,2]
[1341,1714324147337,-420.0,0.00011529,2]
[1342,1714324147355,-216.56047838,0.00011632,2]
[1343,1714324147374,-250.0,0.00011819,2]
[1344,1714324147392,-570.7829106,0.00011943,2]
[1345,1714324147411,-1159.31618587,0.00012047,2]
[1346,1714324147431,-729.7450776,0.00012148,2]
[1347,1714324147449,-153.0,0.00012641,2]
[1348,1714324147468,-587.0,0.00012669,2]
[1349,1714324147487,-587.0,0.00012682,2]
[1350,1714324147507,-154.79876161,0.00013,2]
[1351,1714324147526,-153.0,0.00013068,2]
[1352,1714324147546,-195.59320852,0.00013091,2]
[1353,1714324149545,198.1306054,9.482e-05,2]
[1354,1714324152158,-153.0,0.000134,2]
[1355,1714324152177,-153.0,0.00013425,2]
[1356,1714324152198,-153.0,0.00013425,2]
[1357,1714324152217,-153.0,0.00013425,2]
[1358,1714324152241,-153.0,0.00013425,2]
[1359,1714324152260,-153.0,0.00013425,2]
[1360,1714324152282,-153.0,0.00013425,2]
[1361,1714324152304,-153.0,0.00013425,2]
[1362,1714324152326,-153.0,0.00013425,2]
[1363,1714324152346,-153.0,0.00013425,2]
[1364,1714324152367,-153.0,0.00013425,2]
[1365,1714324152387,-36.79617503,0.00013425,2]
[1366,1714324160583,194.03587254,0.00013,2]
[1367,1714324162804,232.26865651,0.00010482,2]
[1374,1714324260427,592.03415623,0.0001323,2]
[1375,1714324376065,1312.75517414,0.0001,2]
[1380,1714324382502,1621.41921468,9.999e-05,2]
[1381,1714324401345,475.11677013,9.999e-05,2]
[1382,1714324408369,154.79876161,9.999e-05,2]
[1383,1714324425892,164.05365003,9.999e-05,2]
[1384,1714324444116,284.9878188,9.999e-05,2]
[1385,1714324460397,285.48029206,9.999e-05,2]
[1386,1714324803497,154.79876161,9.999e-05,2]
[1387,1714324816066,1621.41921468,9.999e-05,2]
[1388,1714324819486,154.79876161,9.999e-05,2]
[1389,1714324830871,475.11677013,9.999e-05,2]
[1390,1714324837497,271.80287102,9.999e-05,2]
[1394,1714324910406,1312.75517414,0.0001,2]
[1396,1714325134968,514.17906868,0.0001,2]
[1397,1714325144990,164.05365003,9.999e-05,2]
[1398,1714325161250,768.69660055,0.0001,2]
[1399,1714325169213,521.92146173,9.999e-05,2]
[1400,1714325170033,308.72716186,9.999e-05,2]
[1401,1714325171014,526.73680751,9.999e-05,2]
[1402,1714325180270,155.08505684,0.0001,2]
[1403,1714325216932,1312.75517414,0.0001,2]
[1404,1714325232164,-7789.47286674,0.00011238,2]
[1405,1714325235179,-5941.33912539,0.00011238,2]
[1406,1714325243098,-45469.57460037,0.00011238,2]
[1407,1714325243119,-300.0,0.00011238,2]
[1408,1714325243138,-30081.56440048,0.00011239,2]
[1409,1714325243156,-309.96916606,0.0001124,2]
[1410,1714325243174,-522.57945713,0.0001124,2]
[1411,1714325243194,-532.32490927,0.0001124,2]
[1412,1714325243214,-667.95402306,0.00011241,2]
[1413,1714325243233,-1018.44698092,0.00011245,2]
[1414,1714325243252,-24900.0,0.00011246,2]
[1415,1714325243272,-2288.4126181,0.00011408,2]
[1416,1714325243291,-909.0986349,0.00011714,2]
[1417,1714325243309,-250.0,0.00011715,2]
[1418,1714325243327,-201.665342,0.00011882,2]
[1419,1714325243347,-420.0,0.00012362,2]
[1420,1714325243366,-155.6029123,0.000128,2]
[1421,1714325243386,-154.79854021,0.000129,2]
[1422,1714325243405,-1209.69089479,0.000129,2]
[1423,1714325243425,-153.0,0.00012978,2]
[1424,1714325243445,-1201.16467041,0.00013,2]
[1425,1714325243465,-153.0,0.00013078,2]
[1426,1714325243483,-153.0,0.00013078,2]
[1427,1714325243502,-153.0,0.000131,2]
[1428,1714325243521,-153.0,0.000132,2]
[1429,1714325243540,-419.24355141,0.00013324,2]
[1430,1714325243564,-153.0,0.000134,2]
[1431,1714325243583,-423.7317953,0.000134,2]
[1432,1714325243604,-153.0,0.000134,2]
[1433,1714325243623,-153.0,0.000134,2]
[1434,1714325243643,-587.0,0.00013598,2]
[1435,1714325243662,-154.79854021,0.00013664,2]
[1436,1714325243681,-271.1190332,0.00013699,2]
[1437,1714325243702,-5734.4298936,0.00013699,2]
[1438,1714325243721,-166.666666,0.00013699,2]
[1439,1714325243739,-3617.689796,0.00013699,2]
[1440,1714325243758,-155.24511279,0.000137,2]
[1441,1714325243777,-180.21374479,0.00013796,2]
[1442,1714325243796,-730.49023799,0.00013972,2]
[1443,1714325243816,-153.0,0.00013973,2]
[1444,1714325243836,-928.36107169,0.00014,2]
[1445,1714325243855,-154.79854021,0.00014429,2]
[1446,1714325243874,-1209.69089478,0.00014715,2]
[1447,1714325243893,-300.0,0.00014728,2]
[1448,1714325243912,-823.0,0.00014958,2]
[1449,1714325243931,-606.09444551,0.00015,2]
[1450,1714325243952,-180.0,0.00015,2]
[1451,1714325243972,-180.0,0.00015192,2]
[1452,1714325243990,-154.79854021,0.00015193,2]
[1453,1714325244128,-2100.78803626,0.00015796,2]
[1454,1714325244149,-2391.54694339,0.00015797,2]
[1455,1714325244168,-154.99891037,0.00015896,2]
[1456,1714325244187,-1790.38896228,0.00015896,2]
[1457,1714325244206,-154.98101671,0.00015896,2]
[1458,1714325244226,-412.10241037,0.00015896,2]
[1459,1714325244245,-155.0008864,0.00015896,2]
[1460,1714325244266,-154.81422293,0.00015896,2]
[1461,1714325244284,-154.81422293,0.00015896,2]
[1462,1714325244303,-1202.83854325,0.00015896,2]
[1463,1714325244322,-155.09717222,0.00015896,2]
[1464,1714325244341,-160.0,0.00015897,2]
[1465,1714325244361,-160.0,0.00015897,2]
[1466,1714325244380,-186.26507582,0.00015898,2]
[1467,1714325244400,-754.74454496,0.00015898,2]
[1468,1714325244418,-233.17583669,0.00015898,2]
[1469,1714325244437,-200.0,0.00015898,2]
[1470,1714325244456,-165.395311,0.00015898,2]
[1471,1714325244476,-155.16737015,0.00015898,2]
[1472,1714325244496,-155.10682007,0.00015898,2]
[1473,1714325244516,-158.18005642,0.00015898,2]
[1474,1714325244536,-713.7870833,0.00015898,2]
[1475,1714325244562,-719.62301407,0.00015898,2]
[1476,1714325244582,-200.0,0.00015898,2]
[1477,1714325244603,-599.34785223,0.00015898,2]
[1478,1714325244623,-155.19238874,0.00015898,2]
[1479,1714325244641,-1010.29704153,0.00015898,2]
[1480,1714325244660,-233.41814442,0.00015898,2]
[1481,1714325244680,-1061.06771735,0.00015898,2]
[1482,1714325244699,-208.79729126,0.00015898,2]
[1483,1714325244719,-354.96876268,0.00015898,2]
[1484,1714325244739,-314.97500216,0.00015898,2]
[1485,1714325244760,-1353.11513473,0.00015898,2]
[1486,1714325244780,-160.0,0.00015899,2]
[1487,1714325244799,-160.0,0.00015899,2]
[1488,1714325244820,-158.24993973,0.00015899,2]
[1489,1714325244840,-5046.48527189,0.000159,2]
[1490,1714325247149,-5806.43566908,0.00011237,2]
[1491,1714325247168,-38998.8662513,0.000159,2]
[1496,1714325362139,-163.10673989,0.00014208,2]
[1497,1714325362161,-250.0,0.00014253,2]
[1498,1714325362181,-730.49023799,0.00014307,2]
[1499,1714325362203,-498.57956333,0.00014308,2]
[1512,1714325556270,981.37861207,9.999e-05,2]
[1545,1714325745625,280.71971516,9.999e-05,2]
[1548,1714325767633,280.71971516,9.999e-05,2]
[1554,1714325791618,280.71971516,9.999e-05,2]
[1570,1714325811819,258.15703894,9.999e-05,2]
[1586,1714325997586,549.90481021,9.999e-05,2]
[1618,1714326378608,-3823.3408283,0.00011589,2]
[1619,1714326378637,-250.0,0.00011589,2]
[1620,1714326378668,-300.0,0.0001182,2]
[1621,1714326378697,-300.0,0.0001182,2]
[1622,1714326378724,-1891.26101564,0.00011821,2]
[1623,1714326378752,-998.70168781,0.00011822,2]
[1624,1714326378781,-2631.69646825,0.00011823,2]
[1625,1714326393187,-2228.32151842,0.00011822,2]
[1645,1714326425516,-300.0,0.00011821,2]
[1646,1714326425537,-300.0,0.00011821,2]
[1647,1714326425558,-14499.3398351,0.00011822,2]
[1648,1714326439328,-549.90481021,0.00011821,2]
[1649,1714326439349,-2039.18505234,0.00011822,2]
[1650,1714326446410,-11314.71799462,0.00011822,2]
[1651,1714326446431,-14282.0399238,0.00011823,2]
[1652,1714326456874,981.37861207,9.999e-05,2]
[1653,1714326475997,512.65777378,9.999e-05,2]
[1654,1714326497141,700.42924407,9.999e-05,2]
[1655,1714326499064,193.75390213,9.999e-05,2]
[1656,1714326524707,520.3609854,9.999e-05,2]
[1657,1714326527792,154.79876161,9.999e-05,2]
[1658,1714326532016,19195.82929779,9.999e-05,2]
[1659,1714326545118,-154.79876161,0.00011722,2]
[1660,1714326545851,212.22553252,9.999e-05,2]
[1661,1714326545935,18464.45794859,9.999e-05,2]
[1662,1714326564092,-34.17022932,0.00011722,2]
[1663,1714326564112,-300.0,0.00011822,2]
[1664,1714326564132,-300.0,0.00011822,2]
[1665,1714326564150,-521.1072121,0.00011823,2]
[1666,1714326564174,-154.79876161,0.00011823,2]
[1667,1714326564194,-729.7450776,0.00011823,2]
[1668,1714326564215,-7986.26360795,0.00011823,2]
[1669,1714326564234,-8942.69087,0.00011979,2]
[1670,1714326564252,-1262.6177395,0.00012285,2]
[1671,1714326564271,-420.0,0.00012981,2]
[1672,1714326564291,-420.0,0.00013005,2]
[1673,1714326564310,-162.61115832,0.00013184,2]
[1674,1714326564329,-753.60009444,0.00013285,2]
[1675,1714326566111,-1757.3749256,0.00013285,2]
[1676,1714326756372,890.64374431,9.999e-05,2]
[1677,1714326802208,472.51280237,9.999e-05,2]
[1678,1714326803814,526.73680751,9.999e-05,2]
[1679,1714326847367,2055.00917272,9.999e-05,2]
[1680,1714326866247,549.90481021,9.999e-05,2]
[1681,1714326934185,700.42924407,9.999e-05,2]
[1682,1714326951651,512.65777378,9.999e-05,2]
[1683,1714326954064,512.65777378,9.999e-05,2]
[1684,1714326958540,512.65777378,9.999e-05,2]
[1685,1714326961770,806.1876153,9.999e-05,2]
[1686,1714326963054,512.65777378,9.999e-05,2]
[1687,1714326981442,212.22553252,9.999e-05,2]
[1688,1714327212955,186.25450795,9.999e-05,2]
[1695,1714327258779,308.72716186,9.999e-05,2]
[1696,1714327320775,549.90481021,9.999e-05,2]
[1697,1714327339892,154.79876161,9.999e-05,2]
[1698,1714327359980,212.22553252,9.999e-05,2]
[1699,1714327381673,597.2219936,9.999e-05,2]
[1700,1714327434080,265.61581964,0.00013697,7]
[1701,1714327455855,265.61581964,0.00013697,7]
[1702,1714327462114,250.0,0.00010101,2]
[1703,1714327479859,265.61581964,0.00013697,7]
[1704,1714327497860,265.61581964,0.00015896,7]
[1705,1714327517857,280.17876402,0.00015896,7]
[1712,1714327600193,410.1405574,9.999e-05,2]
[1713,1714327614382,549.90481021,9.999e-05,2]
[1714,1714327616904,154.79876161,9.999e-05,2]
[1715,1714327617066,186.25450795,9.999e-05,2]
[1716,1714327617654,212.22553252,9.999e-05,2]
[1717,1714327621048,597.2219936,9.999e-05,2]
[1718,1714327621490,981.37861207,9.999e-05,2]
[1721,1714327632165,-300.0,0.00010138,2]
[1722,1714327632185,-300.0,0.00010138,2]
[1723,1714327632204,-549.90481021,0.00010138,2]
[1724,1714327632225,-186.25450795,0.00010138,2]
[1725,1714327632246,-1891.26101564,0.00010139,2]
[1726,1714327632271,-30081.56440048,0.00010139,2]
[1727,1714327632291,-12407.58076609,0.0001014,2]
[1728,1714327642125,-154.79876161,0.00010138,2]
[1729,1714327642146,-976.9851614,0.00010138,2]
[1730,1714327642165,-597.2219936,0.00010139,2]
[1731,1714327642185,-212.22553252,0.00010139,2]
[1732,1714327642206,-46792.80582641,0.0001014,2]
[1733,1714327642226,-18646.0105615,0.00010142,2]
[1734,1714327642732,446.8342257,9.167e-05,2]
[1735,1714327643127,-6253.9894385,0.00010142,2]
[1736,1714327643149,-1355.1421955,0.00010164,2]
[1737,1714327643169,-190.7640305,0.00010222,2]
[1738,1714327643188,-420.0,0.00011151,2]
[1739,1714327643210,-420.0,0.00011152,2]
[1740,1714327643230,-162.50582148,0.00011393,2]
[1741,1714327643250,-1357.83726389,0.00011395,2]
[1742,1714327643273,-162.50582147,0.00011944,2]
[1743,1714327643291,-587.0,0.00012264,2]
[1744,1714327643312,-587.0,0.00012267,2]
[1745,1714327643332,-1357.83726388,0.00012271,2]
[1746,1714327643354,-162.50582147,0.00012494,2]
[1747,1714327643372,-9916.36543637,0.000125,2]
[1748,1714327643390,-162.50582147,0.00013045,2]
[1749,1714327643410,-1357.83726388,0.00013148,2]
[1750,1714327643430,-823.0,0.00013488,2]
[1751,1714327643453,-823.0,0.00013494,2]
[1752,1714327643471,-162.50582147,0.00013596,2]
[1754,1714327643493,-526.53023767,0.00013697,2]
[1755,1714327643511,-474.96750211,0.00013697,2]
[1756,1714327643530,-194.30238856,0.00013697,2]
[1757,1714327643548,-308.53854102,0.00013697,2]
[1758,1714327643567,-700.42924407,0.00013698,2]
[1759,1714327643586,-3381.70116,0.00013699,2]
[1760,1714327643605,-701.8463813,0.00013699,2]
[1761,1714327643623,-3000.0,0.00013699,2]
[1762,1714327643643,-166.666666,0.00013699,2]
[1763,1714327643664,-48483.64521308,0.00013699,2]
[1764,1714327653251,-5941.33912539,0.00010138,2]
[1770,1714327658961,1057.78601185,9.999e-05,2]
[1782,1714327697366,729.7450776,9.999e-05,2]
[1783,1714327704046,471.97178715,9.999e-05,2]
[1784,1714327709866,475.11677013,9.999e-05,2]
[1785,1714327719415,154.81422293,0.0001,2]
[1786,1714327737357,232.25319519,0.0001,2]
[1787,1714327746275,-300.0,0.00010137,2]
[1788,1714327746298,-300.0,0.00010137,2]
[1789,1714327746318,-24140.22527509,0.00010138,2]
[1790,1714327746340,-420.0,0.0001115,2]
[1791,1714327746360,-420.0,0.00011151,2]
[1792,1714327746383,-587.0,0.00012263,2]
[1793,1714327746404,-587.0,0.00012266,2]
[1794,1714327746425,-717.83103107,0.00012793,2]
[1797,1714327774160,-198.1306054,0.00012693,2]
[1798,1714327774180,-1422.96154679,0.00012793,2]
[1894,1714327832272,-300.0,0.00012792,2]
[1895,1714327832282,-1189.32248904,0.00012793,2]
[1896,1714327832294,-3316.12617874,0.00012793,2]
[1897,1714327832305,-1034.0194,0.00012793,2]
[1898,1714327832317,-4380.39576926,0.00012793,2]
[1899,1714327832334,-186.25450795,0.00012999,2]
[1900,1714327832344,-154.81422293,0.00013,2]
[1901,1714327832353,-212.22553252,0.00013696,2]
[1902,1714327832363,-154.81422293,0.00013697,2]
[1903,1714327832372,-1891.26101564,0.00013698,2]
[1904,1714327832382,-75.13511692,0.00013699,2]
[1905,1714327832530,-2532.485361,0.00013699,2]
[1906,1714327832540,-160.0,0.00013699,2]
[1907,1714327832550,-151.0,0.00013699,2]
[1908,1714327832559,-2052.901958,0.00013699,2]
[1909,1714327832569,-2052.901958,0.00013699,2]
[1910,1714327832579,-730.49023799,0.00013999,2]
[1912,1714327832590,-9553.54474531,0.00013999,2]
[1917,1714327832883,-480.25897421,0.00013999,2]
[1918,1714327832895,-839.11375686,0.00013999,2]
[1919,1714327832906,-510.26658941,0.00013999,2]
[1920,1714327832917,-4289.31098686,0.00013999,2]
[1921,1714327832927,-928.36107169,0.00014,2]
[1922,1714327832936,-2661.68919946,0.00014,2]
[1923,1714327832946,-1357.83726388,0.00014024,2]
[1924,1714327832955,-420.0,0.00014071,2]
[1925,1714327832965,-270.11703722,0.00014308,2]
[1926,1714327832974,-155.1670489,0.00014694,2]
[1927,1714327832983,-150.166,0.00014694,2]
[1928,1714327832993,-59200.3865925,0.00014696,2]
[1929,1714327833002,-300.0,0.00014728,2]
[1930,1714327833011,-1357.83726388,0.000149,2]
[1931,1714327833021,-474.8978881,0.00014997,2]
[1932,1714327833030,-2100.78803626,0.00015,2]
[1933,1714327833039,-151.0,0.00015,2]
[1934,1714327833048,-368.195133,0.00015,2]
[1935,1714327833057,-368.195133,0.00015,2]
[1936,1714327833066,-151.0,0.00015,2]
[1937,1714327833075,-151.0,0.00015,2]
[1938,1714327833084,-151.0,0.00015,2]
[1939,1714327833094,-151.0,0.00015,2]
[1940,1714327833103,-151.0,0.00015,2]
[1941,1714327833112,-151.0,0.00015,2]
[1942,1714327833121,-151.0,0.00015,2]